fUST/lending_fUST_20240624
["ID","MTS","AMOUNT","RATE_DAILY","PERIOD"]
[330302544,1719241921956,1487.2316115,0.00013283,2]
[330302545,1719241922590,154.99225039,0.00013283,2]
[330302546,1719241938705,154.99225039,0.00013283,2]
[330302547,1719241940344,565.7746747,0.00013283,2]
[330302548,1719241995840,208.3392434,9.999e-05,2]
[330302549,1719241996947,3000.0,0.000225,30]
[330302550,1719242070538,212.84,0.000224,31]
[330302551,1719242070589,212.84,0.000224,31]
[330302552,1719242070649,212.84,0.000224,31]
[330302553,1719242070700,212.84,0.000224,31]
[330302554,1719242070771,212.84,0.000224,31]
[330302555,1719242070831,212.84,0.000224,31]
[330302556,1719242070889,212.84,0.000224,31]
[330302557,1719242070957,212.84,0.000224,31]
[330302558,1719242071021,212.84,0.000224,31]
[330302559,1719242071091,212.84,0.000224,31]
[330302560,1719242071149,212.84,0.000224,31]
[330302561,1719242071315,212.84,0.000224,31]
[330302562,1719242071368,212.84,0.000224,31]
[330302563,1719242071431,212.84,0.000224,31]
[330302564,1719242071486,212.84,0.000224,31]
[330302565,1719242071550,212.84,0.000224,31]
[330302566,1719242071605,212.84,0.000224,31]
[330302567,1719242071660,212.84,0.000224,31]
[330302568,1719242071717,212.84,0.000224,31]
[330302569,1719242071789,212.84,0.000224,31]
[330302570,1719242176248,386.16501926,0.00013936,2]
[330302571,1719242226723,157.894736,0.00013699,2]
[330302572,1719242261178,23197.0,0.00025999,120]
[330302574,1719242404377,154.99225039,0.0001,2]
[330302575,1719242429819,866.23309486,0.00013936,2]
[330302577,1719242561728,24900.0,0.00013662,2]
[330302578,1719242597111,232.79354395,0.00013936,2]
[330302579,1719242600192,3000.0,0.000225,30]
[330302580,1719242682430,170.29,0.000224,31]
[330302581,1719242682499,170.29,0.000224,31]
[330302582,1719242682553,170.29,0.000224,31]
[330302583,1719242682614,170.29,0.000224,31]
[330302584,1719242682669,170.29,0.000224,31]
[330302585,1719242682735,170.29,0.000224,31]
[330302586,1719242682951,170.29,0.000224,31]
[330302587,1719242683020,170.29,0.000224,31]
[330302588,1719242683073,170.29,0.000224,31]
[330302589,1719242683131,170.29,0.000224,31]
[330302590,1719242683206,170.29,0.000224,31]
[330302591,1719242683272,170.29,0.000224,31]
[330302592,1719242683334,170.29,0.000224,31]
[330302593,1719242683394,170.29,0.000224,31]
[330302594,1719242683452,170.29,0.000224,31]
[330302595,1719242683701,170.29,0.000224,31]
[330302596,1719242683760,170.29,0.000224,31]
[330302597,1719242683818,170.29,0.000224,31]
[330302598,1719242683880,170.29,0.000224,31]
[330302599,1719242683938,170.29,0.000224,31]
[330302600,1719242712349,757.95395802,0.00013936,2]
[330302601,1719242847409,565.7746747,9.999e-05,2]
[330302602,1719242855547,164.81209326,9.999e-05,2]
[330302603,1719242905933,565.7746747,0.0001212,2]
[330302604,1719242909044,164.81209326,0.0001212,2]
[330302605,1719242919497,157.894736,0.00013699,2]
[330302606,1719242927201,254.95992285,0.0001212,2]
[330302721,1719242998526,663.20971325,0.00013936,2]
[330302722,1719243000256,186.23483516,0.00013936,2]
[330302757,1719243033468,-6972.7816651,0.00014026,2]
[330302760,1719243033484,-627.00448647,0.00014026,2]
[330302763,1719243033499,-1363.09145929,0.00014027,2]
[330302765,1719243033511,-990.65106447,0.00014027,2]
[330302767,1719243033521,-208.3392434,0.00014034,2]
[330302769,1719243033532,-300.0,0.00014035,2]
[330302771,1719243033545,-17227.699458,0.00014036,2]
[330302774,1719243033557,-8537.70697001,0.00014036,2]
[330303186,1719243039359,-33642.89516987,0.00014036,2]
[330303189,1719243039370,-11118.98907716,0.00014036,2]
[330303190,1719243039381,-9601.79213166,0.00014036,2]
[330303192,1719243039391,-155.00852547,0.00014036,2]
[330303194,1719243039401,-565.7746747,0.00014535,2]
[330303196,1719243039412,-164.81209326,0.00014536,2]
[330303198,1719243039423,-186.23483513,0.00014537,2]
[330303200,1719243039435,-2824.23165146,0.00015,2]
[330303202,1719243039447,-155.81496789,0.00015,2]
[330303204,1719243039457,-1913.6932576,0.00015136,2]
[330303206,1719243039467,-186.23483513,0.00015137,2]
[330303208,1719243039479,-420.0,0.00015439,2]
[330303209,1719243039488,-205.754624,0.000155,2]
[330303212,1719243039499,-2029.6194543,0.00015678,2]
[330303214,1719243039509,-150.0,0.00015679,2]
[330303216,1719243039521,-876.0,0.00015679,2]
[330303218,1719243039531,-947.4992689,0.00015737,2]
[330303220,1719243039541,-186.23483513,0.00015738,2]
[330303222,1719243039551,-306.0,0.0001589,2]
[330303223,1719243039560,-205.7840921,0.00016032,2]
[330303225,1719243039573,-50014.28881375,0.00016163,2]
[330303228,1719243039583,-153.0,0.00016164,2]
[330303230,1719243039593,-153.0,0.00016164,2]
[330303232,1719243039603,-153.0,0.00016164,2]
[330303233,1719243039613,-318.0694556,0.00016203,2]
[330303235,1719243039623,-318.0694556,0.00016204,2]
[330303237,1719243039633,-723.78639686,0.00016223,2]
[330303239,1719243039643,-723.78639686,0.00016223,2]
[330303241,1719243039654,-5278.8466527,0.00016224,2]
[330303243,1719243039664,-179.54081427,0.00016227,2]
[330303245,1719243039673,-1117.74863961,0.00016227,2]
[330303247,1719243039683,-663.20971323,0.00016227,2]
[330303249,1719243039693,-1268.75607856,0.00016303,2]
[330303251,1719243039704,-457.45943987,0.00016304,2]
[330303253,1719243039714,-597.70730701,0.00016304,2]
[330303255,1719243039724,-292.99777244,0.00016304,2]
[330303257,1719243039734,-155.00852547,0.00016304,2]
[330303259,1719243039745,-195.47966853,0.00016304,2]
[330303261,1719243039755,-212.21550879,0.00016304,2]
[330303263,1719243039766,-933.08575257,0.00016304,2]
[330303265,1719243039776,-1456.69905185,0.00016305,2]
[330303266,1719243039786,-2465.38969592,0.00016305,2]
[330303267,1719243039796,-2181.23318222,0.00016305,2]
[330303268,1719243039806,-232.60333536,0.00016306,2]
[330303269,1719243039817,-208.78500633,0.00016306,2]
[330303270,1719243039828,-286.39912426,0.00016306,2]
[330303271,1719243039838,-212.54377847,0.00016306,2]
[330303272,1719243039848,-10562.28786365,0.00016306,2]
[330303273,1719243039858,-516.79936011,0.00016306,2]
[330303274,1719243039869,-207.71530322,0.00016306,2]
[330303275,1719243039879,-490.28883306,0.00016306,2]
[330303276,1719243039888,-2040.81356743,0.00016307,2]
[330303277,1719243039898,-1487.2316115,0.00016307,2]
[330303278,1719243039908,-3923.79380923,0.00016307,2]
[330303279,1719243039918,-1313.011853,0.00016307,2]
[330303280,1719243039928,-1487.2316115,0.00016307,2]
[330303281,1719243039939,-207.71530322,0.00016308,2]
[330303282,1719243039949,-402.64531294,0.00016308,2]
[330303283,1719243039959,-155.00852547,0.00016308,2]
[330303284,1719243039970,-155.00852547,0.00016308,2]
[330303285,1719243039980,-209.58388854,0.00016308,2]
[330303286,1719243039991,-155.00852547,0.00016308,2]
[330303287,1719243040001,-176.09888537,0.00016308,2]
[330303288,1719243040011,-239.56788705,0.00016308,2]
[330303289,1719243040022,-521.06468489,0.00016309,7]
[330303290,1719243040032,-2647.51345546,0.00016309,2]
[330303291,1719243040042,-1568.46393602,0.00016309,2]
[330303292,1719243040052,-159.35965211,0.0001631,2]
[330303293,1719243040062,-157.57380656,0.0001631,2]
[330303294,1719243040073,-401.65252924,0.00016312,2]
[330303295,1719243040083,-176.00680323,0.00016312,2]
[330303296,1719243040093,-176.00680323,0.00016312,2]
[330303297,1719243040103,-493.06986669,0.00016313,2]
[330303298,1719243040113,-155.00697531,0.00016313,2]
[330303299,1719243040123,-222.05313325,0.00016334,2]
[330303300,1719243040133,-311.16652392,0.00016335,2]
[330303301,1719243040143,-186.23483513,0.00016338,2]
[330303302,1719243040153,-620.00000598,0.00016339,2]
[330303303,1719243040163,-500.0,0.00016438,2]
[330303304,1719243040173,-500.0,0.00016438,2]
[330303305,1719243040183,-500.0,0.00016438,2]
[330303306,1719243040193,-503.32358083,0.00016438,2]
[330303307,1719243040203,-500.0,0.00016438,2]
[330303308,1719243040212,-432.68016874,0.00016438,2]
[330303309,1719243040222,-500.0,0.00016438,2]
[330303310,1719243040232,-500.0,0.00016438,2]
[330303311,1719243040241,-500.0,0.00016438,2]
[330303312,1719243040251,-514.49295763,0.00016438,2]
[330303313,1719243040262,-500.0,0.00016438,2]
[330303314,1719243040273,-510.26394449,0.00016438,2]
[330303315,1719243040283,-500.0,0.00016438,2]
[330303316,1719243040294,-501.30393583,0.00016438,2]
[330303317,1719243040304,-500.0,0.00016438,2]
[330303318,1719243040314,-500.0,0.00016438,2]
[330303319,1719243040327,-205.50329273,0.00016438,2]
[330303320,1719243040336,-500.0,0.00016438,2]
[330303321,1719243040346,-500.0,0.00016438,2]
[330303322,1719243040355,-500.0,0.00016438,2]
[330303323,1719243040365,-503.24913067,0.00016438,2]
[330303324,1719243040375,-500.0,0.00016438,2]
[330303325,1719243040384,-516.02564205,0.00016438,2]
[330303326,1719243040394,-500.0,0.00016438,2]
[330303327,1719243040404,-500.0,0.00016438,2]
[330303328,1719243040414,-500.0,0.00016438,2]
[330303329,1719243040426,-500.0,0.00016438,2]
[330303330,1719243040437,-500.0,0.00016438,2]
[330303331,1719243040446,-500.0,0.00016438,2]
[330303332,1719243040456,-500.0,0.00016438,2]
[330303333,1719243040467,-500.0,0.00016438,2]
[330303334,1719243040476,-501.49550784,0.00016438,2]
[330303335,1719243040487,-500.0,0.00016438,2]
[330303336,1719243040496,-500.0,0.00016438,2]
[330303337,1719243040506,-500.0,0.00016438,2]
[330303338,1719243040517,-500.0,0.00016438,2]
[330303339,1719243040527,-500.0,0.00016438,2]
[330303340,1719243040538,-500.0,0.00016438,2]
[330303341,1719243040548,-500.0,0.00016438,2]
[330303342,1719243040558,-500.0,0.00016438,2]
[330303343,1719243040570,-531.41252331,0.00016438,2]
[330303344,1719243040580,-500.0,0.00016438,2]
[330303345,1719243040593,-250.0,0.00016438,2]
[330303346,1719243040602,-500.0,0.00016438,2]
[330303347,1719243040612,-643.54,0.00016438,2]
[330303348,1719243040623,-342.46783519,0.00016438,2]
[330303349,1719243040634,-500.0,0.00016438,2]
[330303350,1719243040645,-500.0,0.00016438,2]
[330303351,1719243040655,-500.0,0.00016438,2]
[330303352,1719243040666,-500.0,0.00016438,2]
[330303353,1719243040677,-500.0,0.00016438,2]
[330303354,1719243040687,-500.0,0.00016438,2]
[330303355,1719243040698,-610.54721276,0.00016438,2]
[330303356,1719243040709,-500.0,0.00016438,2]
[330303357,1719243040720,-500.0,0.00016438,2]
[330303358,1719243040732,-500.0,0.00016438,2]
[330303359,1719243040744,-500.0,0.00016438,2]
[330303360,1719243040754,-500.0,0.00016438,2]
[330303361,1719243040765,-500.0,0.00016438,2]
[330303362,1719243040775,-500.0,0.00016438,2]
[330303363,1719243040786,-500.0,0.00016438,2]
[330303364,1719243040796,-500.0,0.00016438,2]
[330303365,1719243040807,-500.0,0.00016438,2]
[330303366,1719243040819,-151.0,0.00016438,2]
[330303367,1719243040829,-253.93514534,0.00016438,2]
[330303368,1719243040840,-500.0,0.00016438,2]
[330303369,1719243040850,-500.0,0.00016438,2]
[330303370,1719243040861,-500.0,0.00016438,2]
[330303371,1719243040872,-500.0,0.00016438,2]
[330303372,1719243040882,-500.0,0.00016438,2]
[330303373,1719243040892,-500.0,0.00016438,2]
[330303374,1719243040903,-500.0,0.00016438,2]
[330303375,1719243040913,-500.0,0.00016438,2]
[330303376,1719243040923,-508.07531729,0.00016438,2]
[330303377,1719243040933,-500.0,0.00016438,2]
[330303378,1719243040943,-508.54715155,0.00016438,2]
[330303379,1719243040953,-500.0,0.00016438,2]
[330303380,1719243040964,-500.0,0.00016438,2]
[330303381,1719243040974,-302.70250165,0.00016438,2]
[330303382,1719243040984,-500.0,0.00016438,2]
[330303383,1719243040995,-504.51931464,0.00016438,2]
[330303384,1719243041005,-505.0900718,0.00016438,2]
[330303385,1719243041014,-504.26160852,0.00016438,2]
[330303386,1719243041025,-512.59428248,0.00016438,2]
[330303387,1719243041035,-500.0,0.00016438,2]
[330303388,1719243041045,-500.0,0.00016438,2]
[330303389,1719243041055,-500.0,0.00016438,2]
[330303390,1719243041066,-500.44662187,0.00016438,2]
[330303392,1719243041079,-500.0,0.00016438,2]
[330303395,1719243041089,-500.0,0.00016438,2]
[330303397,1719243041100,-500.0,0.00016438,2]
[330303398,1719243041111,-500.0,0.00016438,2]
[330303399,1719243041121,-500.0,0.00016438,2]
[330303400,1719243041131,-500.0,0.00016438,2]
[330303401,1719243041141,-711.75,0.00016438,2]
[330303402,1719243041151,-171.53277044,0.00016438,2]
[330303403,1719243041161,-500.0,0.00016438,2]
[330303405,1719243041171,-500.0,0.00016438,2]
[330303407,1719243041181,-500.0,0.00016438,2]
[330303408,1719243041191,-500.0,0.00016438,2]
[330303409,1719243041202,-500.0,0.00016438,2]
[330303410,1719243041212,-500.0,0.00016438,2]
[330303411,1719243041222,-500.0,0.00016438,2]
[330303412,1719243041233,-500.3026683,0.00016438,2]
[330303413,1719243041243,-500.0,0.00016438,2]
[330303414,1719243041253,-500.0,0.00016438,2]
[330303415,1719243041263,-500.0,0.00016438,2]
[330303416,1719243041273,-178.85731788,0.00016438,2]
[330303417,1719243041283,-500.0,0.00016438,2]
[330303418,1719243041293,-415.5871649,0.00016438,2]
[330303419,1719243041303,-502.06858797,0.00016438,2]
[330303420,1719243041313,-500.0,0.00016438,2]
[330303421,1719243041328,-510.73280205,0.00016438,2]
[330303422,1719243041337,-500.0,0.00016438,2]
[330303423,1719243041347,-504.17106983,0.00016438,2]
[330303424,1719243041357,-500.0,0.00016438,2]
[330303425,1719243041366,-500.0,0.00016438,2]
[330303426,1719243041376,-500.0,0.00016438,2]
[330303427,1719243041385,-500.0,0.00016438,2]
[330303428,1719243041395,-151.0,0.00016438,2]
[330303429,1719243041405,-151.0,0.00016438,2]
[330303430,1719243041415,-826.74,0.00016438,2]
[330303431,1719243041426,-500.0,0.00016438,2]
[330303432,1719243041438,-500.0,0.00016438,2]
[330303433,1719243041448,-266.31823188,0.00016438,2]
[330303434,1719243041458,-504.18179672,0.00016438,2]
[330303435,1719243041468,-500.0,0.00016438,2]
[330303436,1719243041585,-516.01327769,0.00016438,2]
[330303437,1719243041600,-500.0,0.00016438,2]
[330303438,1719243041609,-500.0,0.00016438,2]
[330303439,1719243041619,-516.47277608,0.00016438,2]
[330303440,1719243041629,-151.0,0.00016438,2]
[330303441,1719243041638,-500.0,0.00016438,2]
[330303442,1719243041648,-151.0,0.00016438,2]
[330303443,1719243041658,-500.0,0.00016438,2]
[330303444,1719243041668,-532.30448464,0.00016438,2]
[330303445,1719243041678,-500.0,0.00016438,2]
[330303446,1719243041688,-500.0,0.00016438,2]
[330303447,1719243041698,-500.0,0.00016438,2]
[330303448,1719243041709,-500.0,0.00016438,2]
[330303449,1719243041718,-500.0,0.00016438,2]
[330303450,1719243041728,-500.0,0.00016438,2]
[330303451,1719243041738,-204.51626241,0.00016438,2]
[330303452,1719243041748,-160.83710823,0.00016438,2]
[330303453,1719243041758,-500.0,0.00016438,2]
[330303454,1719243041768,-500.0,0.00016438,2]
[330303456,1719243041777,-500.0,0.00016438,2]
[330303458,1719243041787,-500.0,0.00016438,2]
[330303460,1719243041796,-500.0,0.00016438,2]
[330303462,1719243041806,-500.0,0.00016438,2]
[330303463,1719243041815,-500.0,0.00016438,2]
[330303464,1719243041828,-500.0,0.00016438,2]
[330303465,1719243041838,-500.0,0.00016438,2]
[330303466,1719243041847,-478.48029184,0.00016438,2]
[330303467,1719243041857,-501.50970424,0.00016438,2]
[330303468,1719243041866,-500.0,0.00016438,2]
[330303469,1719243041875,-511.83428857,0.00016438,2]
[330303470,1719243041885,-500.0,0.00016438,2]
[330303471,1719243041894,-500.0,0.00016438,2]
[330303472,1719243041904,-500.0,0.00016438,2]
[330303473,1719243041914,-500.0,0.00016438,2]
[330303474,1719243041924,-500.0,0.00016438,2]
[330303475,1719243041933,-502.022016,0.00016438,2]
[330303476,1719243041942,-804.13,0.00016438,2]
[330303477,1719243041952,-538.35,0.00016438,2]
[330303478,1719243041961,-500.0,0.00016438,2]
[330303479,1719243041970,-500.0,0.00016438,2]
[330303480,1719243041980,-500.0,0.00016438,2]
[330303481,1719243041990,-500.0,0.00016438,2]
[330303482,1719243042000,-500.0,0.00016438,2]
[330303483,1719243042010,-500.0,0.00016438,2]
[330303484,1719243042019,-519.78098807,0.00016438,2]
[330303485,1719243042029,-500.0,0.00016438,2]
[330303486,1719243042038,-500.0,0.00016438,2]
[330303487,1719243042047,-500.0,0.00016438,2]
[330303488,1719243042056,-500.19906233,0.00016438,2]
[330303489,1719243042066,-500.0,0.00016438,2]
[330303490,1719243042076,-500.0,0.00016438,2]
[330303491,1719243042085,-543.06222572,0.00016438,2]
[330303492,1719243042094,-500.0,0.00016438,2]
[330303493,1719243042103,-500.0,0.00016438,2]
[330303494,1719243042112,-500.0,0.00016438,2]
[330303495,1719243042122,-151.0,0.00016438,2]
[330303496,1719243042131,-164.931718,0.00016438,2]
[330303497,1719243042141,-500.0,0.00016438,2]
[330303498,1719243042151,-234.81807462,0.00016438,2]
[330303499,1719243042164,-1911.46,0.00016438,2]
[330303500,1719243042173,-630.85030799,0.00016438,2]
[330303501,1719243042183,-615.35941525,0.00016438,2]
[330303502,1719243042193,-500.0,0.00016438,2]
[330303503,1719243042202,-500.0,0.00016438,2]
[330303504,1719243042211,-500.0,0.00016438,2]
[330303505,1719243042220,-500.0,0.00016438,2]
[330303506,1719243042230,-500.0,0.00016438,2]
[330303507,1719243042239,-500.0,0.00016438,2]
[330303508,1719243042248,-171.139791,0.00016438,2]
[330303509,1719243042257,-171.139791,0.00016438,2]
[330303510,1719243042267,-171.139791,0.00016438,2]
[330303511,1719243042276,-500.0,0.00016438,2]
[330303512,1719243042285,-924.72,0.00016438,2]
[330303513,1719243042295,-171.139791,0.00016438,2]
[330303514,1719243042304,-171.139791,0.00016438,2]
[330303515,1719243042314,-171.139791,0.00016438,2]
[330303516,1719243042325,-500.0,0.00016438,2]
[330303517,1719243042335,-500.0,0.00016438,2]
[330303518,1719243042344,-1203.4,0.00016438,2]
[330303519,1719243042353,-500.0,0.00016438,2]
[330303520,1719243042362,-500.0,0.00016438,2]
[330303521,1719243042371,-500.0,0.00016438,2]
[330303522,1719243042381,-500.0,0.00016438,2]
[330303523,1719243042390,-519.86,0.00016438,2]
[330303524,1719243042399,-513.92458602,0.00016438,2]
[330303525,1719243042409,-500.0,0.00016438,2]
[330303526,1719243042419,-624.35185681,0.00016438,2]
[330303527,1719243042690,-20.86814319,0.00016438,2]
[330303528,1719243042699,-500.0,0.00016438,2]
[330303529,1719243042708,-500.0,0.00016438,2]
[330303530,1719243042717,-603.16,0.00016438,2]
[330303531,1719243042729,-500.0,0.00016438,2]
[330303532,1719243042739,-500.0,0.00016438,2]
[330303533,1719243042749,-500.0,0.00016438,2]
[330303534,1719243042759,-151.0,0.00016438,2]
[330303535,1719243042768,-500.0,0.00016438,2]
[330303536,1719243042778,-505.41456587,0.00016438,2]
[330303537,1719243042787,-500.0,0.00016438,2]
[330303538,1719243042795,-500.0,0.00016438,2]
[330303539,1719243042804,-500.0,0.00016438,2]
[330303540,1719243042813,-500.0,0.00016438,2]
[330303541,1719243042824,-500.0,0.00016438,2]
[330303542,1719243042833,-475.47000235,0.00016438,2]
[330303543,1719243042842,-500.0,0.00016438,2]
[330303544,1719243042851,-500.0,0.00016438,2]
[330303545,1719243042860,-500.0,0.00016438,2]
[330303546,1719243042869,-500.0,0.00016438,2]
[330303547,1719243042879,-500.0,0.00016438,2]
[330303548,1719243042888,-500.0,0.00016438,2]
[330303549,1719243042897,-151.0,0.00016438,2]
[330303550,1719243042908,-259.190954,0.00016438,2]
[330303551,1719243042917,-500.0,0.00016438,2]
[330303552,1719243042927,-500.0,0.00016438,2]
[330303553,1719243042937,-502.00912115,0.00016438,2]
[330303554,1719243042946,-500.0,0.00016438,2]
[330303555,1719243042955,-548.5868324,0.00016438,2]
[330303556,1719243042964,-500.0,0.00016438,2]
[330303557,1719243042974,-500.0,0.00016438,2]
[330303558,1719243042983,-500.0,0.00016438,2]
[330303559,1719243042993,-500.0,0.00016438,2]
[330303560,1719243043002,-93.55038105,0.00016438,2]
[330303561,1719243043015,-428.88642443,0.00016438,2]
[330303562,1719243043024,-500.0,0.00016438,2]
[330303563,1719243043034,-500.0,0.00016438,2]
[330303564,1719243043044,-500.0,0.00016438,2]
[330303565,1719243043053,-500.0,0.00016438,2]
[330303566,1719243043063,-500.0,0.00016438,2]
[330303567,1719243043074,-991.02,0.00016438,2]
[330303568,1719243043084,-500.0,0.00016438,2]
[330303569,1719243043093,-500.0,0.00016438,2]
[330303570,1719243043103,-500.0,0.00016438,2]
[330303571,1719243043112,-151.0,0.00016438,2]
[330303572,1719243043122,-151.0,0.00016438,2]
[330303573,1719243043132,-151.0,0.00016438,2]
[330303574,1719243043141,-1194.54,0.00016438,2]
[330303575,1719243043151,-500.0,0.00016438,2]
[330303576,1719243043160,-500.0,0.00016438,2]
[330303577,1719243043170,-500.0,0.00016438,2]
[330303578,1719243043180,-500.0,0.00016438,2]
[330303579,1719243043189,-500.0,0.00016438,2]
[330303580,1719243043198,-151.0,0.00016438,2]
[330303581,1719243043208,-500.0,0.00016438,2]
[330303582,1719243043217,-151.0,0.00016438,2]
[330303583,1719243043227,-151.0,0.00016438,2]
[330303584,1719243043236,-513.04752169,0.00016438,2]
[330303585,1719243043245,-500.0,0.00016438,2]
[330303586,1719243043255,-500.0,0.00016438,2]
[330303587,1719243043264,-500.0,0.00016438,2]
[330303588,1719243043274,-500.0,0.00016438,2]
[330303589,1719243043284,-500.0,0.00016438,2]
[330303590,1719243043293,-500.0,0.00016438,2]
[330303591,1719243043302,-500.0,0.00016438,2]
[330303592,1719243043312,-500.0,0.00016438,2]
[330303593,1719243043323,-500.0,0.00016438,2]
[330303594,1719243043332,-500.0,0.00016438,2]
[330303595,1719243043341,-500.0,0.00016438,2]
[330303596,1719243043350,-500.0,0.00016438,2]
[330303597,1719243043359,-500.0,0.00016438,2]
[330303598,1719243043368,-739.0,0.00016438,2]
[330303599,1719243043377,-500.0,0.00016438,2]
[330303600,1719243043387,-500.0,0.00016438,2]
[330303601,1719243043397,-500.0,0.00016438,2]
[330303602,1719243043406,-365.55023899,0.00016438,2]
[330303603,1719243043415,-500.0,0.00016438,2]
[330303604,1719243043425,-500.0,0.00016438,2]
[330303605,1719243043438,-500.0,0.00016438,2]
[330303606,1719243043447,-500.0,0.00016438,2]
[330303607,1719243043457,-605.55244346,0.00016438,2]
[330303608,1719243043466,-500.0,0.00016438,2]
[330303609,1719243043477,-500.0,0.00016438,2]
[330303610,1719243043486,-500.0,0.00016438,2]
[330303611,1719243043495,-279.162872,0.00016438,2]
[330303612,1719243043504,-533.32067151,0.00016438,2]
[330303613,1719243043516,-283.97718624,0.00016438,2]
[330303614,1719243043526,-480.1300929,0.00016438,2]
[330303615,1719243043535,-500.0,0.00016438,2]
[330303616,1719243043545,-500.0,0.00016438,2]
[330303617,1719243043554,-500.0,0.00016438,2]
[330303618,1719243043563,-500.0,0.00016438,2]
[330303619,1719243043577,-151.0,0.00016438,2]
[330303620,1719243043586,-500.0,0.00016438,2]
[330303621,1719243043598,-500.0,0.00016438,2]
[330303622,1719243043607,-595.03211871,0.00016438,2]
[330303623,1719243043616,-500.0,0.00016438,2]
[330303625,1719243043625,-500.0,0.00016438,2]
[330303626,1719243043635,-500.0,0.00016438,2]
[330303627,1719243043644,-500.0,0.00016438,2]
[330303628,1719243043653,-510.65136855,0.00016438,2]
[330303629,1719243043662,-500.0,0.00016438,2]
[330303630,1719243043671,-500.0,0.00016438,2]
[330303631,1719243043680,-500.0,0.00016438,2]
[330303632,1719243043689,-552.88514986,0.00016438,2]
[330303634,1719243043698,-500.0,0.00016438,2]
[330303635,1719243043707,-500.0,0.00016438,2]
[330303636,1719243043716,-500.0,0.00016438,2]
[330303637,1719243043726,-500.0,0.00016438,2]
[330303638,1719243043735,-500.0,0.00016438,2]
[330303639,1719243043745,-552.5269617,0.00016438,2]
[330303640,1719243043755,-500.0,0.00016438,2]
[330303641,1719243043764,-500.0,0.00016438,2]
[330303642,1719243043773,-500.0,0.00016438,2]
[330303643,1719243043783,-521.28,0.00016438,2]
[330303644,1719243043792,-500.0,0.00016438,2]
[330303645,1719243043801,-553.74364378,0.00016438,2]
[330303646,1719243043810,-500.0,0.00016438,2]
[330303647,1719243043820,-500.0,0.00016438,2]
[330303648,1719243043829,-500.0,0.00016438,2]
[330303649,1719243043839,-1016.91,0.00016438,2]
[330303650,1719243043848,-542.21767505,0.00016438,2]
[330303651,1719243043857,-500.0,0.00016438,2]
[330303652,1719243043866,-500.0,0.00016438,2]
[330303653,1719243043875,-3713.67,0.00016438,2]
[330303654,1719243043885,-500.0,0.00016438,2]
[330303655,1719243043894,-504.82232797,0.00016438,2]
[330303656,1719243043903,-500.0,0.00016438,2]
[330303657,1719243043912,-412.1938397,0.00016438,2]
[330303658,1719243043922,-500.0,0.00016438,2]
[330303659,1719243043931,-509.13072355,0.00016438,2]
[330303660,1719243043940,-500.0,0.00016438,2]
[330303661,1719243043949,-500.0,0.00016438,2]
[330303662,1719243043959,-502.86678996,0.00016438,2]
[330303663,1719243043968,-502.01063582,0.00016438,2]
[330303664,1719243043977,-205.68659,0.00016438,2]
[330303665,1719243043986,-205.68659,0.00016438,2]